fUST/lending_fUST_20250514
["ID","MTS","AMOUNT","RATE_DAILY","PERIOD"]
[360986743,1747183838622,-500.0,0.00012283,2]
[360986744,1747183838631,-500.0,0.00012283,2]
[360986745,1747183838642,-500.0,0.00012283,2]
[360986746,1747183838651,-500.0,0.00012283,2]
[360986747,1747183838660,-500.0,0.00012283,2]
[360986748,1747183838669,-500.0,0.00012283,2]
[360986749,1747183838679,-500.0,0.00012283,2]
[360986750,1747183838689,-500.0,0.00012283,2]
[360986752,1747183838699,-500.0,0.00012283,2]
[360986753,1747183838708,-500.0,0.00012283,2]
[360986754,1747183838717,-500.0,0.00012283,2]
[360986755,1747183838727,-500.0,0.00012283,2]
[360986756,1747183838742,-500.0,0.00012283,2]
[360986757,1747183838751,-500.0,0.00012283,2]
[360986758,1747183838761,-500.0,0.00012283,2]
[360986759,1747183838770,-500.0,0.00012283,2]
[360986760,1747183838780,-500.0,0.00012283,2]
[360986761,1747183838790,-500.0,0.00012283,2]
[360986762,1747183838799,-500.0,0.00012283,2]
[360986763,1747183838809,-500.0,0.00012283,2]
[360986764,1747183838819,-500.0,0.00012283,2]
[360986765,1747183838830,-500.0,0.00012283,2]
[360986766,1747183838839,-500.0,0.00012283,2]
[360986767,1747183838849,-500.0,0.00012283,2]
[360986768,1747183838859,-422.27678759,0.00012283,2]
[360986769,1747183838868,-500.0,0.00012283,2]
[360986770,1747183838879,-500.0,0.00012283,2]
[360986771,1747183838888,-500.0,0.00012283,2]
[360986772,1747183838897,-500.0,0.00012283,2]
[360986773,1747183838907,-500.0,0.00012283,2]
[360986774,1747183838916,-500.0,0.00012283,2]
[360986775,1747183838925,-500.0,0.00012283,2]
[360986776,1747183838934,-500.0,0.00012283,2]
[360986777,1747183838944,-650.0,0.00012283,2]
[360986778,1747183838954,-500.0,0.00012283,2]
[360986779,1747183838964,-500.0,0.00012283,2]
[360986780,1747183838974,-500.0,0.00012283,2]
[360986781,1747183838983,-500.0,0.00012283,2]
[360986782,1747183838992,-500.0,0.00012283,2]
[360986783,1747183839002,-500.0,0.00012283,2]
[360986784,1747183839011,-500.0,0.00012283,2]
[360986785,1747183839021,-339.01890045,0.00012283,2]
[360986786,1747183839031,-500.0,0.00012283,2]
[360986787,1747183839040,-500.0,0.00012283,2]
[360986788,1747183839049,-500.0,0.00012283,2]
[360986789,1747183839058,-500.0,0.00012283,2]
[360986790,1747183839068,-500.0,0.00012283,2]
[360986791,1747183839077,-500.0,0.00012283,2]
[360986792,1747183839088,-500.0,0.00012283,2]
[360986793,1747183839098,-500.0,0.00012283,2]
[360986794,1747183839107,-500.0,0.00012283,2]
[360986795,1747183839116,-500.0,0.00012283,2]
[360986796,1747183839126,-500.0,0.00012284,2]
[360986797,1747183839136,-500.0,0.00012284,2]
[360986798,1747183839145,-505.50429348,0.00012284,2]
[360986799,1747183839155,-500.0,0.00012284,2]
[360986800,1747183839164,-500.0,0.00012284,2]
[360986801,1747183839174,-242.37125385,0.00012284,2]
[360986802,1747183839184,-500.0,0.00012284,2]
[360986803,1747183839195,-500.0,0.00012284,2]
[360986804,1747183839205,-500.0,0.00012284,2]
[360986805,1747183839215,-500.0,0.00012284,2]
[360986806,1747183839225,-500.0,0.00012284,2]
[360986807,1747183839235,-500.0,0.00012284,2]
[360986808,1747183839246,-500.0,0.00012284,2]
[360986809,1747183839256,-500.0,0.00012284,2]
[360986810,1747183839267,-49846.88178463,0.00012285,2]
[360986811,1747183839276,-510.11859803,0.00012286,2]
[360986812,1747183839286,-151.0,0.00012287,2]
[360986813,1747183839296,-151.0,0.00012287,2]
[360986814,1747183839306,-151.0,0.00012287,2]
[360986815,1747183839317,-5353.03333801,0.00012287,2]
[360986816,1747183839326,-2288.1714474,0.00012289,2]
[360986817,1747183839337,-161.15,0.00012329,2]
[360986818,1747183839347,-165.7235016,0.00012399,2]
[360986819,1747183839356,-610.10240068,0.00012607,2]
[360986820,1747183839366,-152.0,0.00012653,2]
[360986821,1747183839378,-315.07330774,0.000129,2]
[360986822,1747183839387,-610.10240068,0.00013029,2]
[360986823,1747183839397,-500.0,0.00013262,2]
[360986824,1747183839406,-500.0,0.00013262,2]
[360986825,1747183839417,-500.0,0.00013262,2]
[360986826,1747183839426,-501.52088128,0.00013262,2]
[360986827,1747183839436,-456.492186,0.00013288,2]
[360986828,1747183839446,-456.492186,0.00013288,2]
[360986829,1747183839455,-500.0,0.00013288,2]
[360986830,1747183839466,-500.0,0.00013288,2]
[360986831,1747183839475,-500.0,0.00013288,2]
[360986832,1747183839485,-419.43239156,0.00013288,2]
[360986833,1747183839494,-501.08224958,0.00013288,2]
[360986834,1747183839504,-5126.56102936,0.0001329,2]
[360986835,1747183839515,-610.10240068,0.0001345,2]
[360986836,1747183839524,-300.0,0.0001348,2]
[360986837,1747183839534,-420.0,0.00013481,2]
[360986838,1747183839543,-1441.0,0.00013513,2]
[360986839,1747183839554,-400.0,0.00013698,2]
[360986840,1747183839563,-400.0,0.00013698,2]
[360986841,1747183839573,-400.0,0.00013698,2]
[360986842,1747183839583,-400.0,0.00013698,2]
[360986843,1747183839593,-400.0,0.00013698,2]
[360986844,1747183839603,-400.0,0.00013698,2]
[360986845,1747183839613,-456.0,0.00013698,2]
[360986846,1747183839820,-400.0,0.00013698,2]
[360986847,1747183839830,-400.0,0.00013698,2]
[360986848,1747183839839,-391.80261499,0.00013698,2]
[360986849,1747183839850,-479.37728458,0.00013698,2]
[360986850,1747183839861,-400.0,0.00013698,2]
[360986851,1747183839872,-400.0,0.00013698,2]
[360986852,1747183839883,-400.0,0.00013698,2]
[360986853,1747183839892,-400.0,0.00013698,2]
[360986854,1747183839901,-400.0,0.00013698,2]
[360986855,1747183839911,-598.88,0.00013698,2]
[360986856,1747183839921,-400.0,0.00013698,2]
[360986857,1747183839930,-400.0,0.00013698,2]
[360986858,1747183839939,-400.0,0.00013698,2]
[360986859,1747183839950,-595.61,0.00013698,2]
[360986860,1747183839959,-400.0,0.00013698,2]
[360986861,1747183839969,-400.0,0.00013698,2]
[360986862,1747183839979,-181.72883734,0.00013698,2]
[360986863,1747183839988,-400.0,0.00013698,2]
[360986864,1747183840000,-400.0,0.00013698,2]
[360986865,1747183840009,-400.0,0.00013698,2]
[360986866,1747183840018,-443.36,0.00013698,2]
[360986868,1747183840029,-400.0,0.00013698,2]
[360986870,1747183840039,-400.0,0.00013698,2]
[360986872,1747183840048,-400.0,0.00013698,2]
[360986874,1747183840059,-400.0,0.00013698,2]
[360986876,1747183840069,-400.0,0.00013698,2]
[360986878,1747183840078,-400.0,0.00013698,2]
[360986880,1747183840088,-400.0,0.00013698,2]
[360986882,1747183840100,-400.0,0.00013698,2]
[360986884,1747183840111,-400.0,0.00013698,2]
[360986887,1747183840121,-400.0,0.00013698,2]
[360986889,1747183840132,-400.0,0.00013698,2]
[360986891,1747183840141,-712.77,0.00013698,2]
[360986893,1747183840151,-649.41,0.00013698,2]
[360986895,1747183840161,-400.0,0.00013698,2]
[360986897,1747183840171,-400.0,0.00013698,2]
[360986899,1747183840180,-400.0,0.00013698,2]
[360986901,1747183840191,-400.0,0.00013698,2]
[360986903,1747183840200,-400.0,0.00013698,2]
[360986905,1747183840209,-400.0,0.00013698,2]
[360986907,1747183840219,-400.0,0.00013698,2]
[360986909,1747183840228,-413.33823226,0.00013698,2]
[360986911,1747183840238,-400.0,0.00013698,2]
[360986913,1747183840247,-400.0,0.00013698,2]
[360986915,1747183840256,-400.0,0.00013698,2]
[360986917,1747183840266,-400.0,0.00013698,2]
[360986920,1747183840277,-400.0,0.00013698,2]
[360986922,1747183840288,-400.0,0.00013698,2]
[360986925,1747183840297,-400.0,0.00013698,2]
[360986927,1747183840306,-400.0,0.00013698,2]
[360986929,1747183840316,-400.0,0.00013698,2]
[360986931,1747183840325,-400.0,0.00013698,2]
[360986933,1747183840335,-400.0,0.00013698,2]
[360986935,1747183840344,-400.0,0.00013698,2]
[360986937,1747183840354,-400.0,0.00013698,2]
[360986939,1747183840363,-400.0,0.00013698,2]
[360986941,1747183840372,-479.5359127,0.00013698,2]
[360986943,1747183840382,-688.13,0.00013698,2]
[360986945,1747183840393,-400.0,0.00013698,2]
[360986947,1747183840402,-400.0,0.00013698,2]
[360986949,1747183840411,-400.0,0.00013698,2]
[360986951,1747183840420,-400.0,0.00013698,2]
[360986953,1747183840430,-400.0,0.00013698,2]
[360986955,1747183840440,-400.0,0.00013698,2]
[360986957,1747183840450,-810.22,0.00013698,2]
[360986959,1747183840459,-400.0,0.00013698,2]
[360986961,1747183840468,-400.0,0.00013698,2]
[360986963,1747183840479,-755.33,0.00013698,2]
[360986965,1747183840488,-7296.67,0.00013698,2]
[360986967,1747183840498,-427.54122384,0.00013698,2]
[360986970,1747183840507,-437.56,0.00013698,2]
[360986973,1747183840518,-400.0,0.00013698,2]
[360986976,1747183840527,-400.0,0.00013698,2]
[360986979,1747183840536,-400.0,0.00013698,2]
[360986982,1747183840546,-400.0,0.00013698,2]
[360986985,1747183840555,-1726.57,0.00013698,2]
[360986990,1747183840566,-400.0,0.00013698,2]
[360986993,1747183840575,-434.43,0.00013698,2]
[360986996,1747183840585,-400.0,0.00013698,2]
[360986999,1747183840594,-400.0,0.00013698,2]
[360987002,1747183840604,-400.0,0.00013698,2]
[360987005,1747183840613,-535.15,0.00013698,2]
[360987008,1747183840623,-400.0,0.00013698,2]
[360987011,1747183840634,-400.0,0.00013698,2]
[360987014,1747183840643,-400.0,0.00013698,2]
[360987016,1747183840652,-526.72,0.00013698,2]
[360987018,1747183840662,-400.0,0.00013698,2]
[360987020,1747183840671,-1990.16,0.00013698,2]
[360987022,1747183840681,-400.0,0.00013698,2]
[360987025,1747183840691,-400.0,0.00013698,2]
[360987028,1747183840701,-400.0,0.00013698,2]
[360987031,1747183840710,-1106.28,0.00013698,2]
[360987034,1747183840720,-400.0,0.00013698,2]
[360987037,1747183840729,-521.06,0.00013698,2]
[360987040,1747183840741,-400.0,0.00013698,2]
[360987043,1747183840750,-400.0,0.00013698,2]
[360987046,1747183840759,-400.0,0.00013698,2]
[360987049,1747183840768,-400.0,0.00013698,2]
[360987050,1747183840778,-832.57,0.00013698,2]
[360987053,1747183840787,-757.43,0.00013698,2]
[360987056,1747183840796,-400.0,0.00013698,2]
[360987059,1747183840805,-400.0,0.00013698,2]
[360987063,1747183840816,-400.0,0.00013698,2]
[360987066,1747183840826,-400.0,0.00013698,2]
[360987069,1747183840835,-400.0,0.00013698,2]
[360987071,1747183840845,-400.0,0.00013698,2]
[360987072,1747183840854,-400.0,0.00013698,2]
[360987075,1747183840863,-400.0,0.00013698,2]
[360987077,1747183840872,-480.19,0.00013698,2]
[360987080,1747183840883,-400.0,0.00013698,2]
[360987082,1747183840892,-503.44,0.00013698,2]
[360987084,1747183840902,-400.0,0.00013698,2]
[360987086,1747183840911,-400.0,0.00013698,2]
[360987088,1747183840921,-441.34,0.00013698,2]
[360987090,1747183840930,-400.0,0.00013698,2]
[360987092,1747183840939,-456.492186,0.00013698,2]
[360987094,1747183840948,-501.0,0.00013698,2]
[360987096,1747183840958,-400.0,0.00013698,2]
[360987098,1747183840967,-400.0,0.00013698,2]
[360987100,1747183840976,-456.492186,0.00013698,2]
[360987102,1747183840986,-400.0,0.00013698,2]
[360987104,1747183840996,-794.23,0.00013698,2]
[360987106,1747183841005,-1204.81,0.00013698,2]
[360987108,1747183841014,-400.0,0.00013698,2]
[360987110,1747183841023,-2079.73,0.00013698,2]
[360987112,1747183841033,-876.32,0.00013698,2]
[360987114,1747183841042,-583.82,0.00013698,2]
[360987116,1747183841052,-205.4966764,0.00013698,2]
[360987118,1747183841061,-475.27,0.00013698,2]
[360987120,1747183841071,-546.96,0.00013698,2]
[360987122,1747183841080,-151.0,0.00013698,2]
[360987124,1747183841089,-400.0,0.00013698,2]
[360987126,1747183841099,-151.0,0.00013698,2]
[360987128,1747183841110,-151.0,0.00013698,2]
[360987131,1747183841120,-400.0,0.00013698,2]
[360987133,1747183841134,-894.17,0.00013698,2]
[360987135,1747183841143,-4444.62,0.00013698,2]
[360987137,1747183841152,-1208.56,0.00013698,2]
[360987139,1747183841162,-151.0,0.00013698,2]
[360987141,1747183841171,-151.0,0.00013698,2]
[360987143,1747183841180,-1035.59,0.00013698,2]
[360987145,1747183841189,-400.0,0.00013698,2]
[360987147,1747183841199,-400.0,0.00013698,2]
[360987149,1747183841209,-400.0,0.00013698,2]
[360987151,1747183841218,-400.0,0.00013698,2]
[360987153,1747183841228,-513.15,0.00013698,2]
[360987155,1747183841237,-400.0,0.00013698,2]
[360987157,1747183841246,-1223.85,0.00013698,2]
[360987159,1747183841256,-998.4,0.00013698,2]
[360987161,1747183841266,-968.28,0.00013698,2]
[360987163,1747183841276,-400.0,0.00013698,2]
[360987165,1747183841285,-151.0,0.00013698,2]
[360987167,1747183841295,-151.0,0.00013698,2]
[360987169,1747183841304,-400.0,0.00013698,2]
[360987171,1747183841313,-609.66,0.00013698,2]
[360987173,1747183841322,-400.0,0.00013698,2]
[360987175,1747183841333,-400.0,0.00013698,2]
[360987177,1747183841343,-458.29189558,0.00013698,2]
[360987179,1747183841353,-400.0,0.00013698,2]
[360987181,1747183841363,-693.43,0.00013698,2]
[360987183,1747183841372,-2084.24,0.00013698,2]
[360987186,1747183841385,-400.0,0.00013698,2]
[360987188,1747183841395,-400.0,0.00013698,2]
[360987190,1747183841404,-400.0,0.00013698,2]
[360987192,1747183841414,-400.0,0.00013698,2]
[360987194,1747183841424,-582.31,0.00013698,2]
[360987196,1747183841433,-400.0,0.00013698,2]
[360987198,1747183841443,-400.0,0.00013698,2]
[360987200,1747183841452,-529.87,0.00013698,2]
[360987202,1747183841461,-400.0,0.00013698,2]
[360987204,1747183841470,-693.02,0.00013698,2]
[360987206,1747183841480,-400.0,0.00013698,2]
[360987208,1747183841490,-400.0,0.00013698,2]
[360987210,1747183841500,-400.0,0.00013698,2]
[360987212,1747183841509,-951.31,0.00013698,2]
[360987214,1747183841518,-403.77,0.00013698,2]
[360987216,1747183841528,-677.99,0.00013698,2]
[360987218,1747183841537,-400.0,0.00013698,2]
[360987220,1747183841547,-429.92,0.00013698,2]
[360987222,1747183841556,-520.85,0.00013698,2]
[360987224,1747183841566,-400.0,0.00013698,2]
[360987226,1747183841575,-484.32,0.00013698,2]
[360987228,1747183841585,-400.0,0.00013698,2]
[360987230,1747183841595,-705.513879,0.00013699,2]
[360987232,1747183841604,-151.0,0.00013699,2]
[360987234,1747183841614,-151.0,0.00013699,2]
[360987236,1747183841623,-610.10240068,0.00013872,2]
[360987238,1747183841634,-8811.82067486,0.000139,2]
[360987240,1747183841643,-500.0,0.00013906,2]
[360987242,1747183841654,-500.0,0.00013906,2]
[360987244,1747183841663,-500.0,0.00013906,2]
[360987246,1747183841673,-500.0,0.00013906,2]
[360987248,1747183841682,-500.0,0.00013909,2]
[360987250,1747183841692,-501.664656,0.00013909,2]
[360987252,1747183841701,-500.0,0.0001392,2]
[360987254,1747183841711,-400.0,0.00013972,2]
[360987256,1747183841720,-400.0,0.00013972,2]
[360987258,1747183841732,-400.0,0.00013972,2]
[360987260,1747183841743,-211.25099271,0.00013972,2]
[360987262,1747183841752,-400.0,0.00013972,2]
[360987264,1747183841762,-400.0,0.00013972,2]
[360987266,1747183841771,-400.0,0.00013972,2]
[360987268,1747183841781,-400.0,0.00013972,2]
[360987270,1747183841790,-400.0,0.00013972,2]
[360987272,1747183841800,-304.41295235,0.00013972,2]
[360987274,1747183841811,-598.88,0.00013972,2]
[360987276,1747183841821,-400.0,0.00013972,2]
[360987278,1747183841830,-400.0,0.00013972,2]
[360987280,1747183841839,-400.0,0.00013972,2]
[360987282,1747183841849,-595.61,0.00013972,2]
[360987284,1747183841858,-400.0,0.00013972,2]
[360987286,1747183841867,-400.0,0.00013972,2]
[360987288,1747183841876,-400.0,0.00013972,2]
[360987290,1747183841886,-400.0,0.00013972,2]
[360987292,1747183841895,-400.0,0.00013972,2]
[360987294,1747183841905,-443.36,0.00013972,2]
[360987296,1747183841914,-400.0,0.00013972,2]
[360987298,1747183841924,-400.0,0.00013972,2]
[360987300,1747183841933,-400.0,0.00013972,2]
[360987302,1747183841943,-537.3120063,0.00013972,2]
[360987304,1747183841952,-400.0,0.00013972,2]
[360987306,1747183841961,-400.0,0.00013972,2]
[360987308,1747183841971,-400.0,0.00013972,2]
[360987310,1747183841981,-400.0,0.00013972,2]
[360987312,1747183841991,-400.0,0.00013972,2]
[360987314,1747183842001,-151.0,0.00013972,2]
[360987316,1747183842010,-400.0,0.00013972,2]
[360987318,1747183842019,-254.18088958,0.00013972,2]
[360987320,1747183842029,-712.77,0.00013972,2]
[360987322,1747183842038,-649.41,0.00013972,2]
[360987325,1747183842047,-400.0,0.00013972,2]
[360987327,1747183842057,-400.0,0.00013972,2]
[360987329,1747183842067,-400.0,0.00013972,2]
[360987331,1747183842077,-400.0,0.00013972,2]
[360987333,1747183842087,-400.0,0.00013972,2]
[360987335,1747183842096,-400.0,0.00013972,2]
[360987337,1747183842105,-400.0,0.00013972,2]
[360987339,1747183842115,-400.0,0.00013972,2]
[360987341,1747183842124,-400.0,0.00013972,2]
[360987343,1747183842134,-400.0,0.00013972,2]
[360987345,1747183842144,-400.0,0.00013972,2]
[360987347,1747183842155,-400.0,0.00013972,2]
[360987349,1747183842164,-400.0,0.00013972,2]
[360987351,1747183842174,-400.0,0.00013972,2]
[360987353,1747183842184,-400.0,0.00013972,2]
[360987355,1747183842194,-400.0,0.00013972,2]
[360987357,1747183842204,-400.0,0.00013972,2]
[360987359,1747183842213,-400.0,0.00013972,2]
[360987361,1747183842223,-688.13,0.00013972,2]
[360987363,1747183842232,-400.0,0.00013972,2]
[360987365,1747183842241,-400.0,0.00013972,2]
[360987367,1747183842250,-400.0,0.00013972,2]
[360987369,1747183842260,-400.0,0.00013972,2]
[360987371,1747183842269,-400.0,0.00013972,2]
[360987373,1747183842278,-810.22,0.00013972,2]
[360987375,1747183842289,-400.0,0.00013972,2]
[360987377,1747183842300,-400.0,0.00013972,2]
[360987380,1747183842312,-755.33,0.00013972,2]
[360987382,1747183842322,-7296.67,0.00013972,2]
[360987384,1747183842331,-437.56,0.00013972,2]
[360987386,1747183842340,-400.0,0.00013972,2]
[360987388,1747183842349,-400.0,0.00013972,2]
[360987390,1747183842359,-400.0,0.00013972,2]
[360987392,1747183842369,-1726.57,0.00013972,2]
[360987394,1747183842378,-400.0,0.00013972,2]
[360987396,1747183842387,-434.43,0.00013972,2]
[360987398,1747183842399,-400.0,0.00013972,2]
[360987400,1747183842409,-400.0,0.00013972,2]
[360987402,1747183842418,-400.0,0.00013972,2]
[360987404,1747183842427,-535.15,0.00013972,2]
[360987406,1747183842438,-400.0,0.00013972,2]
[360987407,1747183842458,-511.99,0.00013972,2]
[360987409,1747183842481,-400.0,0.00013972,2]
[360987411,1747183842490,-526.72,0.00013972,2]
[360987414,1747183842500,-1990.16,0.00013972,2]
[360987416,1747183842509,-400.0,0.00013972,2]
[360987418,1747183842519,-400.0,0.00013972,2]
[360987419,1747183842529,-1106.28,0.00013972,2]
[360987421,1747183842538,-400.0,0.00013972,2]
[360987424,1747183842548,-521.06,0.00013972,2]
[360987425,1747183842557,-400.0,0.00013972,2]
[360987427,1747183842567,-400.0,0.00013972,2]
[360987430,1747183842577,-400.0,0.00013972,2]
[360987432,1747183842586,-832.57,0.00013972,2]
[360987433,1747183842596,-757.43,0.00013972,2]
[360987435,1747183842606,-400.0,0.00013972,2]
[360987437,1747183842616,-400.0,0.00013972,2]
[360987439,1747183842625,-400.0,0.00013972,2]
[360987442,1747183842637,-400.0,0.00013972,2]
[360987444,1747183842646,-400.0,0.00013972,2]
[360987446,1747183842656,-400.0,0.00013972,2]
[360987448,1747183842665,-400.0,0.00013972,2]
[360987450,1747183842676,-400.0,0.00013972,2]
[360987452,1747183842685,-400.0,0.00013972,2]
[360987454,1747183842695,-503.44,0.00013972,2]
[360987455,1747183842704,-400.0,0.00013972,2]
[360987457,1747183842714,-441.34,0.00013972,2]
[360987460,1747183842724,-400.0,0.00013972,2]
[360987462,1747183842736,-456.492186,0.00013972,2]
[360987463,1747183842746,-400.0,0.00013972,2]
[360987465,1747183842755,-152.54,0.00013972,2]
[360987468,1747183842765,-456.492186,0.00013972,2]
[360987470,1747183842776,-794.23,0.00013972,2]
[360987472,1747183842785,-1204.81,0.00013972,2]
[360987473,1747183842795,-368.67,0.00013972,2]
[360987475,1747183842804,-2079.73,0.00013972,2]
[360987477,1747183842814,-876.32,0.00013972,2]
[360987480,1747183842825,-583.82,0.00013972,2]
[360987481,1747183842835,-475.27,0.00013972,2]
[360987482,1747183842845,-151.0,0.00013972,2]
[360987483,1747183842854,-400.0,0.00013972,2]
[360987484,1747183842863,-894.17,0.00013972,2]
[360987485,1747183842872,-4444.62,0.00013972,2]
[360987486,1747183842885,-1208.56,0.00013972,2]
[360987487,1747183842894,-151.0,0.00013972,2]
[360987488,1747183842904,-1035.59,0.00013972,2]
[360987489,1747183842915,-400.0,0.00013972,2]
[360987490,1747183842925,-400.0,0.00013972,2]
[360987491,1747183842935,-400.0,0.00013972,2]
[360987492,1747183842945,-400.0,0.00013972,2]
[360987493,1747183842955,-1223.85,0.00013972,2]
[360987494,1747183842965,-998.4,0.00013972,2]
[360987495,1747183842975,-968.28,0.00013972,2]
[360987496,1747183842984,-400.0,0.00013972,2]
[360987497,1747183842994,-151.0,0.00013972,2]
[360987498,1747183843003,-378.10639489,0.00013972,2]
[360987500,1747183843013,-609.66,0.00013972,2]
[360987501,1747183843022,-693.43,0.00013972,2]
[360987503,1747183843032,-2084.24,0.00013972,2]
[360987505,1747183843042,-446.63223644,0.00013972,2]
[360987508,1747183843052,-400.0,0.00013972,2]
[360987510,1747183843063,-400.0,0.00013972,2]
[360987512,1747183843073,-400.0,0.00013972,2]
[360987514,1747183843084,-582.31,0.00013972,2]
[360987516,1747183843094,-151.0,0.00013972,2]
[360987518,1747183843104,-207.96,0.00013972,2]
[360987520,1747183843115,-693.02,0.00013972,2]
[360987522,1747183843124,-400.0,0.00013972,2]
[360987524,1747183843138,-951.31,0.00013972,2]
[360987526,1747183843147,-677.99,0.00013972,2]
[360987528,1747183843157,-535.47524009,0.00013972,2]
[360987531,1747183843166,-429.92,0.00013972,2]
[360987534,1747183843176,-400.0,0.00013972,2]
[360987536,1747183843185,-315.07330772,0.0001399,2]
[360987538,1747183843195,-181.92330885,0.00014246,2]
[360987541,1747183843205,-400.0,0.00014246,2]
[360987543,1747183843214,-400.0,0.00014246,2]
[360987545,1747183843224,-400.0,0.00014246,2]
[360987547,1747183843233,-400.0,0.00014246,2]
[360987549,1747183843244,-400.0,0.00014246,2]
[360987551,1747183843254,-239.40267612,0.00014246,2]
[360987553,1747183843263,-400.0,0.00014246,2]
[360987555,1747183843273,-598.88,0.00014246,2]
[360987557,1747183843281,-400.0,0.00014246,2]
[360987559,1747183843291,-400.0,0.00014246,2]
[360987561,1747183843300,-400.0,0.00014246,2]
[360987563,1747183843309,-595.61,0.00014246,2]
[360987565,1747183843318,-400.0,0.00014246,2]
[360987567,1747183843327,-400.0,0.00014246,2]
[360987569,1747183843337,-400.0,0.00014246,2]
[360987571,1747183843347,-400.0,0.00014246,2]
[360987573,1747183843356,-400.0,0.00014246,2]
[360987575,1747183843366,-443.36,0.00014246,2]
[360987577,1747183843375,-482.06461003,0.00014246,2]
[360987579,1747183843386,-400.0,0.00014246,2]
[360987581,1747183843396,-400.0,0.00014246,2]
[360987583,1747183843405,-400.0,0.00014246,2]
[360987585,1747183843415,-400.0,0.00014246,2]
[360987587,1747183843425,-400.0,0.00014246,2]
[360987589,1747183843434,-400.0,0.00014246,2]
[360987591,1747183843443,-400.0,0.00014246,2]
[360987593,1747183843453,-151.0,0.00014246,2]
[360987595,1747183843463,-400.0,0.00014246,2]
[360987597,1747183843473,-712.77,0.00014246,2]
[360987599,1747183843482,-649.41,0.00014246,2]
[360987601,1747183843491,-400.0,0.00014246,2]
[360987603,1747183843501,-400.0,0.00014246,2]
[360987605,1747183843510,-400.0,0.00014246,2]
[360987607,1747183843521,-400.0,0.00014246,2]
[360987609,1747183843530,-400.0,0.00014246,2]
[360987611,1747183843540,-400.0,0.00014246,2]
[360987613,1747183843549,-400.0,0.00014246,2]
[360987615,1747183843559,-400.0,0.00014246,2]
[360987617,1747183843569,-400.0,0.00014246,2]
[360987619,1747183843578,-437.61915151,0.00014246,2]
[360987622,1747183843599,-400.0,0.00014246,2]
[360987624,1747183843609,-184.08782209,0.00014246,2]
[360987626,1747183843618,-400.0,0.00014246,2]
[360987628,1747183843627,-400.0,0.00014246,2]
[360987630,1747183843637,-400.0,0.00014246,2]
[360987632,1747183843646,-246.25688056,0.00014246,2]
[360987634,1747183843655,-688.13,0.00014246,2]
[360987636,1747183843664,-400.0,0.00014246,2]
[360987638,1747183843674,-400.0,0.00014246,2]
[360987640,1747183843683,-400.0,0.00014246,2]
[360987642,1747183843693,-400.0,0.00014246,2]
[360987644,1747183843702,-400.0,0.00014246,2]
[360987646,1747183843712,-810.22,0.00014246,2]